fUSD/lending_fUSD_20240802
["ID","MTS","AMOUNT","RATE_DAILY","PERIOD"]
[333879678,1722592250674,-173.248343,0.00019452,2]
[333879679,1722592250684,-173.248343,0.00019452,2]
[333879680,1722592250694,-173.248343,0.00019452,2]
[333879681,1722592250705,-151.0,0.00019452,2]
[333879682,1722592250715,-151.0,0.00019452,2]
[333879683,1722592250726,-151.0,0.00019452,2]
[333879684,1722592250736,-165.988608,0.00019452,2]
[333879685,1722592250752,-165.988608,0.00019452,2]
[333879686,1722592250763,-165.988608,0.00019452,2]
[333879687,1722592250773,-264.808873,0.00019452,2]
[333879688,1722592250783,-264.808873,0.00019452,2]
[333879689,1722592250794,-264.808873,0.00019452,2]
[333879690,1722592250805,-264.808873,0.00019452,2]
[333879691,1722592250815,-264.808873,0.00019452,2]
[333879692,1722592250826,-264.808873,0.00019452,2]
[333879693,1722592250836,-3694.097588,0.00019452,2]
[333879694,1722592250847,-3694.097588,0.00019452,2]
[333879695,1722592250857,-3694.097588,0.00019452,2]
[333879696,1722592250869,-1026.109274,0.00019452,2]
[333879697,1722592250881,-1026.109274,0.00019452,2]
[333879698,1722592250892,-1026.109274,0.00019452,2]
[333879699,1722592250902,-3694.097588,0.00019452,2]
[333879700,1722592250912,-3694.097588,0.00019452,2]
[333879701,1722592250923,-3694.097588,0.00019452,2]
[333879702,1722592250934,-1026.109274,0.00019452,2]
[333879703,1722592250945,-1026.109274,0.00019452,2]
[333879704,1722592250956,-1026.109274,0.00019452,2]
[333879705,1722592250967,-151.0,0.00019452,2]
[333879706,1722592250978,-151.0,0.00019452,2]
[333879707,1722592250989,-151.0,0.00019452,2]
[333879708,1722592251001,-194.755896,0.00019452,2]
[333879709,1722592251012,-194.755896,0.00019452,2]
[333879710,1722592251023,-194.755896,0.00019452,2]
[333879711,1722592251033,-151.0,0.00019452,2]
[333879712,1722592251044,-151.0,0.00019452,2]
[333879713,1722592251055,-151.0,0.00019452,2]
[333879714,1722592251066,-194.755896,0.00019452,2]
[333879715,1722592251076,-194.755896,0.00019452,2]
[333879716,1722592251087,-194.755896,0.00019452,2]
[333879717,1722592251098,-151.0,0.00019452,2]
[333879718,1722592251108,-151.0,0.00019452,2]
[333879719,1722592251119,-151.0,0.00019452,2]
[333879720,1722592251130,-151.0,0.00019452,2]
[333879721,1722592251141,-151.0,0.00019452,2]
[333879722,1722592251152,-221.391402,0.00019452,2]
[333879723,1722592251163,-151.0,0.00019452,2]
[333879724,1722592251174,-151.0,0.00019452,2]
[333879725,1722592251184,-151.0,0.00019452,2]
[333879726,1722592251195,-189.177011,0.00019452,2]
[333879727,1722592251205,-189.177011,0.00019452,2]
[333879728,1722592251216,-151.0,0.00019452,2]
[333879729,1722592251226,-189.177011,0.00019452,2]
[333879730,1722592251236,-151.0,0.00019452,2]
[333879731,1722592251248,-151.0,0.00019452,2]
[333879732,1722592251259,-189.177011,0.00019452,2]
[333879733,1722592251270,-189.177011,0.00019452,2]
[333879734,1722592251280,-189.177011,0.00019452,2]
[333879735,1722592251290,-151.0,0.00019452,2]
[333879736,1722592251300,-151.0,0.00019452,2]
[333879737,1722592251310,-151.0,0.00019452,2]
[333879738,1722592251321,-151.0,0.00019452,2]
[333879739,1722592251331,-151.0,0.00019452,2]
[333879740,1722592251341,-151.0,0.00019452,2]
[333879741,1722592251352,-151.0,0.00019452,2]
[333879742,1722592251363,-151.0,0.00019452,2]
[333879743,1722592251373,-151.0,0.00019452,2]
[333879744,1722592251383,-151.0,0.00019452,2]
[333879745,1722592251393,-151.0,0.00019452,2]
[333879746,1722592251403,-151.0,0.00019452,2]
[333879747,1722592251415,-664.529249,0.00019452,2]
[333879748,1722592251426,-664.529249,0.00019452,2]
[333879749,1722592251436,-664.529249,0.00019452,2]
[333879750,1722592251453,-664.529249,0.00019452,2]
[333879751,1722592251467,-664.529249,0.00019452,2]
[333879752,1722592251481,-664.529249,0.00019452,2]
[333879753,1722592251495,-151.0,0.00019452,2]
[333879754,1722592251506,-151.0,0.00019452,2]
[333879755,1722592251518,-234.763264,0.00019452,2]
[333879756,1722592251531,-151.0,0.00019452,2]
[333879757,1722592251544,-151.0,0.00019452,2]
[333879758,1722592251556,-151.0,0.00019452,2]
[333879759,1722592251569,-294.73,0.00019453,2]
[333879760,1722592251582,-700.0,0.0001947,2]
[333879761,1722592251596,-500.0,0.0001947,2]
[333879762,1722592251610,-54733.91293738,0.000195,2]
[333879763,1722592251622,-151.0,0.000195,2]
[333879764,1722592251635,-151.0,0.000195,2]
[333879765,1722592251647,-151.0,0.000195,2]
[333879766,1722592251660,-151.0,0.000195,2]
[333879767,1722592251674,-151.0,0.000195,2]
[333879768,1722592251687,-151.0,0.000195,2]
[333879769,1722592251698,-151.0,0.000195,2]
[333879770,1722592251709,-151.0,0.000195,2]
[333879771,1722592251722,-226.83615,0.000195,2]
[333879772,1722592251734,-227.89646,0.000195,2]
[333879773,1722592251749,-1773.74198,0.000195,2]
[333879774,1722592251763,-226.83615,0.000195,2]
[333879775,1722592251775,-1773.74198,0.000195,2]
[333879776,1722592251788,-227.89646,0.000195,2]
[333879777,1722592251802,-151.0,0.000195,2]
[333879778,1722592251816,-151.0,0.000195,2]
[333879779,1722592251828,-151.0,0.000195,2]
[333879780,1722592251839,-151.0,0.000195,2]
[333879781,1722592251850,-210.576668,0.000195,2]
[333879782,1722592251861,-151.0,0.000195,2]
[333879783,1722592251876,-151.0,0.000195,2]
[333879784,1722592251889,-151.0,0.000195,2]
[333879785,1722592251903,-174.945425,0.000195,2]
[333879786,1722592251914,-151.0,0.000195,2]
[333879787,1722592251927,-174.945425,0.000195,2]
[333879788,1722592251938,-388.8,0.000195,2]
[333879789,1722592251953,-388.8,0.000195,2]
[333879790,1722592251965,-211.161281,0.000195,2]
[333879791,1722592251976,-211.161281,0.000195,2]
[333879792,1722592251986,-395.9453,0.000195,2]
[333879793,1722592252000,-1000.0,0.000195,2]
[333879794,1722592252012,-21852.46746848,0.00019521,2]
[333879795,1722592252027,-955.95102095,0.00019531,2]
[333879796,1722592252039,-500.0,0.00019531,2]
[333879797,1722592252051,-530.5,0.00019531,2]
[333879798,1722592252063,-155.60903227,0.00019558,2]
[333879799,1722592252074,-522.31224238,0.00019599,2]
[333879800,1722592252086,-151.0,0.00019613,2]
[333879801,1722592252097,-151.0,0.00019613,2]
[333879802,1722592252110,-2164.36,0.00019625,2]
[333879803,1722592252121,-1000.0,0.00019625,2]
[333879804,1722592252133,-3964.31,0.00019625,2]
[333879805,1722592252144,-300.0,0.00019625,2]
[333879806,1722592252156,-21852.46746848,0.00019675,2]
[333879807,1722592252167,-500.0,0.00019706,2]
[333879808,1722592252179,-476.78839291,0.00019706,2]
[333879809,1722592252191,-500.0,0.00019706,2]
[333879810,1722592252202,-500.0,0.00019706,2]
[333879811,1722592252214,-500.0,0.00019706,2]
[333879812,1722592252227,-220.78,0.00019714,2]
[333879813,1722592252239,-500.0,0.00019714,2]
[333879814,1722592252252,-630.18,0.00019714,2]
[333879815,1722592252264,-500.0,0.00019715,2]
[333879816,1722592252276,-599.27,0.00019715,2]
[333879817,1722592252288,-500.0,0.00019715,2]
[333879818,1722592252300,-500.0,0.00019715,2]
[333879819,1722592252312,-500.0,0.00019715,2]
[333879820,1722592252324,-500.0,0.00019715,2]
[333879821,1722592252335,-528.44,0.00019715,2]
[333879822,1722592252348,-307.5397646,0.00019723,2]
[333879823,1722592252360,-459.15,0.00019725,2]
[333879824,1722592252371,-570.37,0.00019725,2]
[333879825,1722592252384,-500.0,0.00019725,2]
[333879826,1722592252397,-565.22,0.00019725,2]
[333879827,1722592252409,-500.0,0.00019725,2]
[333879828,1722592252421,-500.0,0.00019725,2]
[333879829,1722592252433,-500.0,0.00019725,2]
[333879830,1722592252446,-500.0,0.00019725,2]
[333879831,1722592252470,-500.0,0.00019725,2]
[333879832,1722592252483,-1560.72,0.00019725,2]
[333879833,1722592252498,-1560.72,0.00019725,2]
[333879834,1722592252509,-1560.72,0.00019725,2]
[333879835,1722592252521,-1560.72,0.00019725,2]
[333879836,1722592252533,-1560.72,0.00019725,2]
[333879837,1722592252545,-1560.72,0.00019725,2]
[333879838,1722592252558,-1560.72,0.00019725,2]
[333879839,1722592252569,-1560.72,0.00019725,2]
[333879840,1722592252581,-1560.72,0.00019725,2]
[333879841,1722592252592,-1560.72,0.00019725,2]
[333879842,1722592252604,-1560.72,0.00019725,2]
[333879843,1722592252617,-1560.72,0.00019725,2]
[333879844,1722592252629,-1560.73683192,0.00019725,2]
[333879845,1722592252641,-151.0,0.00019725,2]
[333879846,1722592252654,-151.0,0.00019725,2]
[333879847,1722592252665,-151.0,0.00019725,2]
[333879848,1722592252677,-232.853084,0.00019725,2]
[333879849,1722592252689,-151.0,0.00019725,2]
[333879850,1722592252700,-1193.10352,0.00019725,2]
[333879851,1722592252712,-1193.10352,0.00019725,2]
[333879852,1722592252723,-948.678345,0.00019725,2]
[333879853,1722592252735,-948.678345,0.00019725,2]
[333879854,1722592252749,-515.97898,0.00019725,2]
[333879855,1722592252761,-515.97898,0.00019725,2]
[333879856,1722592252772,-151.0,0.00019725,2]
[333879857,1722592252783,-156.82122085,0.00019725,2]
[333879858,1722592252795,-150.0,0.00019725,2]
[333879859,1722592252806,-500.0,0.00019726,2]
[333879860,1722592252818,-500.0,0.00019726,2]
[333879861,1722592252830,-500.0,0.00019726,2]
[333879862,1722592252841,-500.0,0.00019726,2]
[333879863,1722592252853,-500.0,0.00019726,2]
[333879864,1722592252864,-500.0,0.00019726,2]
[333879865,1722592252878,-500.0,0.00019726,2]
[333879866,1722592252889,-500.0,0.00019726,2]
[333879867,1722592252900,-500.0,0.00019726,2]
[333879868,1722592252912,-500.0,0.00019726,2]
[333879869,1722592252923,-500.0,0.00019726,2]
[333879870,1722592252935,-500.0,0.00019726,2]
[333879871,1722592252948,-500.0,0.00019726,2]
[333879872,1722592252959,-500.0,0.00019726,2]
[333879873,1722592252970,-500.0,0.00019726,2]
[333879874,1722592252981,-500.0,0.00019726,2]
[333879875,1722592252995,-500.0,0.00019726,2]
[333879876,1722592253006,-302.82724831,0.00019726,2]
[333879877,1722592253017,-500.0,0.00019726,2]
[333879878,1722592253029,-500.0,0.00019726,2]
[333879879,1722592253041,-500.0,0.00019726,2]
[333879880,1722592253052,-2936.42,0.00019726,2]
[333879881,1722592253064,-500.0,0.00019726,2]
[333879882,1722592253075,-500.0,0.00019726,2]
[333879883,1722592253087,-500.0,0.00019726,2]
[333879884,1722592253098,-500.0,0.00019726,2]
[333879885,1722592253110,-500.0,0.00019726,2]
[333879886,1722592253122,-500.0,0.00019726,2]
[333879887,1722592253134,-500.0,0.00019726,2]
[333879888,1722592253145,-500.0,0.00019726,2]
[333879889,1722592253156,-500.0,0.00019726,2]
[333879890,1722592253167,-500.0,0.00019726,2]
[333879891,1722592253178,-500.0,0.00019726,2]
[333879892,1722592253190,-500.0,0.00019726,2]
[333879893,1722592253201,-500.0,0.00019726,2]
[333879894,1722592253213,-500.0,0.00019726,2]
[333879895,1722592253224,-500.17995023,0.00019726,2]
[333879896,1722592253235,-500.0,0.00019726,2]
[333879897,1722592253249,-500.0,0.00019726,2]
[333879898,1722592253260,-500.0,0.00019726,2]
[333879899,1722592253272,-742.28,0.00019726,2]
[333879900,1722592253283,-2836.49,0.00019726,2]
[333879901,1722592253294,-500.0,0.00019726,2]
[333879902,1722592253307,-500.0,0.00019726,2]
[333879903,1722592253318,-500.0,0.00019726,2]
[333879904,1722592253330,-500.0,0.00019726,2]
[333879905,1722592253341,-500.0,0.00019726,2]
[333879906,1722592253356,-325.0920947,0.00019726,2]
[333879907,1722592253367,-644.63,0.00019726,2]
[333879908,1722592253378,-1842.56,0.00019726,2]
[333879909,1722592253389,-500.0,0.00019726,2]
[333879910,1722592253403,-500.0,0.00019726,2]
[333879911,1722592253415,-500.0,0.00019726,2]
[333879912,1722592253426,-3362.12,0.00019726,2]
[333879913,1722592253438,-500.0,0.00019726,2]
[333879914,1722592253449,-1297.15,0.00019726,2]
[333879915,1722592253461,-500.0,0.00019726,2]
[333879916,1722592253472,-500.0,0.00019726,2]
[333879917,1722592253484,-500.0,0.00019726,2]
[333879918,1722592253497,-500.0,0.00019726,2]
[333879919,1722592253512,-500.0,0.00019726,2]
[333879920,1722592253523,-2132.99,0.00019726,2]
[333879921,1722592253534,-508.0044518,0.00019726,2]
[333879922,1722592253546,-1111.16,0.00019726,2]
[333879923,1722592253557,-1473.17,0.00019726,2]
[333879924,1722592253568,-500.0,0.00019726,2]
[333879925,1722592253580,-1885.04,0.00019726,2]
[333879926,1722592253591,-500.0,0.00019726,2]
[333879927,1722592253603,-500.0,0.00019726,2]
[333879928,1722592253615,-500.0,0.00019726,2]
[333879929,1722592253627,-500.0,0.00019726,2]
[333879930,1722592253638,-500.0,0.00019726,2]
[333879931,1722592253650,-500.0,0.00019726,2]
[333879932,1722592253661,-1052.68,0.00019726,2]
[333879933,1722592253673,-500.0,0.00019726,2]
[333879934,1722592253683,-964.74,0.00019726,2]
[333879935,1722592253697,-152.01156974,0.00019726,2]
[333879936,1722592253709,-1100.05,0.00019726,2]
[333879937,1722592253722,-500.0,0.00019726,2]
[333879938,1722592253734,-2197.06,0.00019726,2]
[333879939,1722592253748,-500.0,0.00019726,2]
[333879940,1722592253760,-669.41,0.00019726,2]
[333879941,1722592253772,-500.0,0.00019726,2]
[333879942,1722592253785,-500.0,0.00019726,2]
[333879943,1722592253798,-500.0,0.00019726,2]
[333879944,1722592253810,-500.0,0.00019726,2]
[333879945,1722592253821,-500.0,0.00019726,2]
[333879946,1722592253832,-1596.94,0.00019726,2]
[333879947,1722592253843,-500.0,0.00019726,2]
[333879948,1722592253854,-959.17,0.00019726,2]
[333879949,1722592253865,-2536.94,0.00019726,2]
[333879950,1722592253880,-500.0,0.00019726,2]
[333879951,1722592253891,-500.0,0.00019726,2]
[333879952,1722592253902,-1201.01,0.00019726,2]
[333879953,1722592253915,-500.0,0.00019726,2]
[333879954,1722592253926,-500.0,0.00019726,2]
[333879955,1722592253937,-1324.73,0.00019726,2]
[333879956,1722592253951,-500.0,0.00019726,2]
[333879957,1722592253962,-2013.18,0.00019726,2]
[333879958,1722592253973,-1737.01,0.00019726,2]
[333879959,1722592253985,-500.0,0.00019726,2]
[333879960,1722592253997,-500.0,0.00019726,2]
[333879961,1722592254008,-609.06,0.00019726,2]
[333879962,1722592254019,-500.0,0.00019726,2]
[333879963,1722592254031,-1432.65,0.00019726,2]
[333879964,1722592254042,-500.0,0.00019726,2]
[333879965,1722592254054,-646.16,0.00019726,2]
[333879966,1722592254066,-936.19,0.00019726,2]
[333879967,1722592254077,-500.0,0.00019726,2]
[333879968,1722592254089,-500.0,0.00019726,2]
[333879969,1722592254100,-500.0,0.00019726,2]
[333879970,1722592254112,-500.0,0.00019726,2]
[333879971,1722592254123,-2247.55,0.00019726,2]
[333879972,1722592254134,-1761.51,0.00019726,2]
[333879973,1722592254145,-500.0,0.00019726,2]
[333879974,1722592254156,-500.0,0.00019726,2]
[333879975,1722592254167,-1345.7,0.00019726,2]
[333879976,1722592254178,-505.02,0.00019726,2]
[333879977,1722592254189,-882.04,0.00019726,2]
[333879978,1722592254200,-393.85619518,0.00019726,2]
[333879979,1722592254211,-500.0,0.00019726,2]
[333879980,1722592254222,-577.78,0.00019726,2]
[333879981,1722592254234,-500.0,0.00019726,2]
[333879982,1722592254246,-1240.75,0.00019726,2]
[333879983,1722592254257,-940.2,0.00019726,2]
[333879984,1722592254268,-2376.99,0.00019726,2]
[333879985,1722592254280,-840.89,0.00019726,2]
[333879986,1722592254291,-2631.32,0.00019726,2]
[333879987,1722592254302,-548.34,0.00019726,2]
[333879988,1722592254313,-500.0,0.00019726,2]
[333879989,1722592254323,-1098.96,0.00019726,2]
[333879990,1722592254334,-973.86,0.00019726,2]
[333879991,1722592254345,-500.0,0.00019726,2]
[333879992,1722592254356,-2068.69,0.00019726,2]
[333879993,1722592254367,-500.0,0.00019726,2]
[333879994,1722592254379,-500.0,0.00019726,2]
[333879995,1722592254390,-500.0,0.00019726,2]
[333879996,1722592254400,-1869.72,0.00019726,2]
[333879997,1722592254412,-771.99,0.00019726,2]
[333879998,1722592254423,-500.0,0.00019726,2]
[333879999,1722592254434,-500.0,0.00019726,2]
[333880000,1722592254446,-1348.68,0.00019726,2]
[333880001,1722592255739,-2441.91,0.00019726,2]
[333880002,1722592255769,-500.0,0.00019726,2]
[333880003,1722592255788,-500.0,0.00019726,2]
[333880004,1722592255813,-604.07,0.00019726,2]
[333880005,1722592255823,-500.0,0.00019726,2]
[333880006,1722592255834,-1336.25,0.00019726,2]
[333880007,1722592255847,-500.0,0.00019726,2]
[333880008,1722592255857,-500.0,0.00019726,2]
[333880009,1722592255868,-525.02467764,0.00019726,2]
[333880010,1722592255880,-500.0,0.00019726,2]
[333880011,1722592255890,-3199.97,0.00019726,2]
[333880012,1722592255899,-500.0,0.00019726,2]
[333880013,1722592255908,-500.0,0.00019726,2]
[333880014,1722592255918,-1930.85,0.00019726,2]
[333880015,1722592255929,-500.0,0.00019726,2]
[333880016,1722592255939,-813.49,0.00019726,2]
[333880017,1722592255951,-508.23,0.00019726,2]
[333880018,1722592255961,-2123.14,0.00019726,2]
[333880019,1722592255970,-1035.99,0.00019726,2]
[333880020,1722592255980,-500.0,0.00019726,2]
[333880021,1722592255990,-790.3,0.00019726,2]
[333880022,1722592256000,-1966.44,0.00019726,2]
[333880023,1722592256010,-1465.45,0.00019726,2]
[333880024,1722592256019,-515.57,0.00019726,2]
[333880025,1722592256029,-500.0,0.00019726,2]
[333880026,1722592256038,-2750.09,0.00019726,2]
[333880027,1722592256048,-500.0,0.00019726,2]
[333880028,1722592256057,-500.0,0.00019726,2]
[333880029,1722592256066,-500.0,0.00019726,2]
[333880030,1722592256076,-500.0,0.00019726,2]
[333880031,1722592256086,-796.74,0.00019726,2]
[333880032,1722592256096,-1111.45,0.00019726,2]
[333880033,1722592256106,-823.18,0.00019726,2]
[333880034,1722592256115,-1578.89,0.00019726,2]
[333880035,1722592256127,-500.0,0.00019726,2]
[333880036,1722592256136,-500.0,0.00019726,2]
[333880037,1722592256146,-811.42,0.00019726,2]
[333880038,1722592256156,-2448.41,0.00019726,2]
[333880039,1722592256166,-500.0,0.00019726,2]
[333880040,1722592256175,-937.92,0.00019726,2]
[333880041,1722592256186,-500.0,0.00019726,2]
[333880042,1722592256195,-500.0,0.00019726,2]
[333880043,1722592256205,-2431.06,0.00019726,2]
[333880044,1722592256215,-500.0,0.00019726,2]
[333880045,1722592256225,-522.55,0.00019726,2]
[333880046,1722592256235,-8334.89,0.00019726,2]
[333880047,1722592256246,-500.0,0.00019726,2]
[333880048,1722592256256,-1043.81,0.00019726,2]
[333880049,1722592256265,-4384.29,0.00019726,2]
[333880050,1722592256275,-500.0,0.00019726,2]
[333880051,1722592256284,-500.48412945,0.00019726,2]
[333880052,1722592256295,-500.0,0.00019726,2]
[333880053,1722592256305,-677.11,0.00019726,2]
[333880054,1722592256317,-500.0,0.00019726,2]
[333880055,1722592256327,-537.94,0.00019726,2]
[333880056,1722592256337,-1790.2,0.00019726,2]
[333880057,1722592256348,-500.0,0.00019726,2]
[333880058,1722592256359,-500.0,0.00019726,2]
[333880059,1722592256369,-908.61,0.00019726,2]
[333880060,1722592256379,-500.0,0.00019726,2]
[333880061,1722592256390,-500.0,0.00019726,2]
[333880062,1722592256400,-509.26,0.00019726,2]
[333880063,1722592256409,-319.99333396,0.00019726,2]
[333880064,1722592256422,-500.0,0.00019726,2]
[333880065,1722592256432,-622.8,0.00019726,2]
[333880066,1722592256442,-830.79,0.00019726,2]
[333880067,1722592256452,-1826.79,0.00019726,2]
[333880068,1722592256462,-500.0,0.00019726,2]
[333880069,1722592256472,-500.0,0.00019726,2]
[333880070,1722592256481,-500.0,0.00019726,2]
[333880071,1722592256490,-515.25,0.00019726,2]
[333880072,1722592256502,-4461.86,0.00019726,2]
[333880073,1722592256511,-1389.48,0.00019726,2]
[333880074,1722592256524,-1619.52,0.00019726,2]
[333880075,1722592256534,-569.42,0.00019726,2]
[333880076,1722592256549,-500.0,0.00019726,2]
[333880077,1722592256560,-500.0,0.00019726,2]
[333880078,1722592256570,-1091.72,0.00019726,2]
[333880079,1722592256581,-500.0,0.00019726,2]
[333880080,1722592256591,-500.0,0.00019726,2]
[333880081,1722592256602,-4954.7,0.00019726,2]
[333880082,1722592256612,-500.0,0.00019726,2]
[333880083,1722592256622,-585.78,0.00019726,2]
[333880084,1722592256632,-1649.97,0.00019726,2]
[333880085,1722592256642,-2880.54,0.00019726,2]
[333880086,1722592256653,-1871.11,0.00019726,2]
[333880087,1722592256663,-3092.64,0.00019726,2]
[333880088,1722592256673,-500.0,0.00019726,2]
[333880089,1722592256683,-1007.43,0.00019726,2]
[333880090,1722592256693,-1190.31,0.00019726,2]
[333880091,1722592256704,-500.0,0.00019726,2]
[333880092,1722592256714,-4417.5,0.00019726,2]
[333880093,1722592256724,-3933.29,0.00019726,2]
[333880094,1722592256734,-500.0,0.00019726,2]
[333880095,1722592256744,-1521.33,0.00019726,2]
[333880096,1722592256754,-500.0,0.00019726,2]
[333880097,1722592256764,-678.76,0.00019726,2]
[333880098,1722592256774,-1868.69,0.00019726,2]
[333880099,1722592256784,-2484.48,0.00019726,2]
[333880100,1722592256794,-500.0,0.00019726,2]
[333880101,1722592256804,-5009.65,0.00019726,2]
[333880102,1722592256815,-553.08,0.00019726,2]
[333880103,1722592256826,-500.0,0.00019726,2]
[333880104,1722592256837,-500.0,0.00019726,2]
[333880105,1722592256848,-500.0,0.00019726,2]
[333880106,1722592256860,-500.0,0.00019726,2]
[333880107,1722592256876,-500.0,0.00019726,2]
[333880108,1722592256886,-500.0,0.00019726,2]
[333880109,1722592256896,-500.0,0.00019726,2]
[333880110,1722592256906,-3228.39,0.00019726,2]
[333880111,1722592256917,-625.78,0.00019726,2]
[333880112,1722592256927,-818.07,0.00019726,2]
[333880113,1722592256937,-500.0,0.00019726,2]
[333880114,1722592256950,-3346.73,0.00019726,2]
[333880115,1722592256960,-500.0,0.00019726,2]
[333880116,1722592256971,-500.0,0.00019726,2]
[333880117,1722592256981,-2919.8,0.00019726,2]
[333880118,1722592256991,-500.0,0.00019726,2]
[333880119,1722592257003,-500.0,0.00019726,2]
[333880120,1722592257014,-3292.6,0.00019726,2]
[333880121,1722592257024,-500.0,0.00019726,2]
[333880122,1722592257035,-6351.89,0.00019726,2]
[333880123,1722592257045,-500.0,0.00019726,2]
[333880124,1722592257055,-500.0,0.00019726,2]
[333880125,1722592257066,-1040.92,0.00019726,2]
[333880126,1722592257076,-500.0,0.00019726,2]
[333880127,1722592257086,-2682.2,0.00019726,2]
[333880128,1722592257096,-500.0,0.00019726,2]
[333880129,1722592257106,-1758.83,0.00019726,2]
[333880130,1722592257116,-500.0,0.00019726,2]
[333880131,1722592257125,-1745.22,0.00019726,2]
[333880132,1722592257136,-500.0,0.00019726,2]
[333880133,1722592257146,-500.0,0.00019726,2]
[333880134,1722592257156,-500.0,0.00019726,2]
[333880135,1722592257166,-1911.1,0.00019726,2]
[333880136,1722592257177,-500.0,0.00019726,2]
[333880137,1722592257188,-1391.73,0.00019726,2]
[333880138,1722592257198,-1973.04,0.00019726,2]
[333880139,1722592257208,-2562.46,0.00019726,2]
[333880140,1722592257219,-500.0,0.00019726,2]
[333880141,1722592257230,-500.0,0.00019726,2]
[333880142,1722592257240,-2652.44,0.00019726,2]
[333880143,1722592257252,-500.0,0.00019726,2]
[333880144,1722592257262,-500.0,0.00019726,2]
[333880145,1722592257272,-500.0,0.00019726,2]
[333880146,1722592257282,-1417.6,0.00019726,2]
[333880147,1722592257291,-3782.14,0.00019726,2]
[333880148,1722592257301,-4719.88,0.00019726,2]
[333880149,1722592257311,-500.0,0.00019726,2]
[333880150,1722592257321,-500.0,0.00019726,2]
[333880151,1722592257332,-2113.49,0.00019726,2]
[333880152,1722592257342,-500.0,0.00019726,2]
[333880153,1722592257355,-3497.78,0.00019726,2]
[333880154,1722592257366,-500.0,0.00019726,2]
[333880155,1722592257376,-500.0,0.00019726,2]
[333880156,1722592257386,-773.37,0.00019726,2]
[333880157,1722592257396,-500.0,0.00019726,2]
[333880158,1722592257406,-1506.26,0.00019726,2]
[333880159,1722592257415,-650.89,0.00019726,2]
[333880160,1722592257425,-3020.93,0.00019726,2]
[333880161,1722592257435,-500.0,0.00019726,2]
[333880162,1722592257446,-1725.85,0.00019726,2]
[333880163,1722592257457,-500.0,0.00019726,2]
[333880164,1722592257467,-1103.54,0.00019726,2]
[333880165,1722592257478,-500.0,0.00019726,2]
[333880166,1722592257489,-500.0,0.00019726,2]
[333880167,1722592257500,-3680.55,0.00019726,2]
[333880168,1722592257510,-1286.83,0.00019726,2]
[333880169,1722592257520,-355.57721672,0.00019726,2]
[333880170,1722592257530,-500.0,0.00019726,2]
[333880171,1722592257539,-509.04,0.00019726,2]
[333880172,1722592257549,-500.0,0.00019726,2]
[333880173,1722592257559,-500.0,0.00019726,2]
[333880174,1722592257569,-2896.98,0.00019726,2]
[333880175,1722592257579,-500.0,0.00019726,2]
[333880176,1722592257589,-1218.37,0.00019726,2]
[333880177,1722592257598,-4641.02,0.00019726,2]